Cogmind - Beta 16 @@@ ROGUE MODE // 2025.12.07 @ 09:22:19 Player: FR-13D Result: Destroyed by M7-JM8(j) with Overtuned Pulse Rifle Performance ------------- Evolutions (0) 0 Regions Visited (3) 600 Robots Destroyed (24) 120 Value Destroyed (561) 561 Prototype IDs (12) 240 Alien Tech Used (0) 0 Bonus (0) 0 TOTAL SCORE: 1521 Bonus ------- None Cogmind --------- Core Integrity 0/250 Matter 300/300 Energy 250/250 System Corruption 3% Temperature Cool (37) Movement Core (3450) Ox68 Location -7/Recycling Parts ------- > --- POWER (1+1) ------ Ion Engine > --- PROPULSION (2) --- (None) > --- UTILITY (2) ------ Humpback > --- WEAPON (2) ------- (None) > --- INVENTORY (35) --- Light Treads Makeshift Kinetic Plating Scrap Shield Subdweller Laser Subdweller Laser Subdweller Laser Heavy Ion Cannon Battle Rifle Subdweller Machine Gun Barrage Gun Barrage Gun Battle Cannon Subdweller Shrapnel Launcher Subdweller Shrapnel Launcher Makeshift Hammer SUBCON Basin (Full) Peak State ------------ > --- POWER ------------ Ion Engine Makeshift Power Source > --- PROPULSION ------- Wheel Wheel > --- UTILITY ---------- Humpback > --- WEAPON ----------- Powered Cannon > --- INVENTORY -------- Light Treads Light Treads Makeshift Kinetic Plating Scrap Shield Subdweller Laser Subdweller Laser Subdweller Laser Heavy Ion Cannon Battle Rifle Subdweller Machine Gun Barrage Gun Barrage Gun Battle Cannon Subdweller Shrapnel Launcher Subdweller Shrapnel Launcher Makeshift Hammer SUBCON Basin [Rating: 45] Favorites ----------- Power Ion Engine Engine Ion Engine Propulsion Wheel Treads Light Treads Wheel Wheel Utility Humpback Device Seismic Detector Storage Humpback Protection Scrap Shield Weapon Powered Cannon Energy Gun Small Laser Energy Cannon Powered Cannon Special Weapon Mining Laser Build | -11 -10 -10 -7 ------- Run | Yrd Mat Sub Rec Slots Evolved . | . . . . Power . | . . . . Propulsion . | . . . . Utility . | . . . . Weapon . | . . . . Parts Attached 20 | 9 2 9 . Power 3 | 1 . 2 . Engine 3 | 1 . 2 . Core . | . . . . Reactor . | . . . . Propulsion 8 | 3 2 3 . Treads 2 | . 1 1 . Leg . | . . . . Wheel 6 | 3 1 2 . Hover . | . . . . Flight . | . . . . Utility 5 | 3 . 2 . Device 2 | 2 . . . Storage 2 | 1 . 1 . Processor . | . . . . Hackware . | . . . . Protection 1 | . . 1 . Artifact . | . . . . Weapon 4 | 2 . 2 . Energy Gun 2 | 2 . . . Energy Cannon 1 | . . 1 . Ballistic Gun . | . . . . Ballistic Cannon . | . . . . Launcher . | . . . . Special Weapon 1 | . . 1 . Impact Weapon . | . . . . Slashing Weapon . | . . . . Piercing Weapon . | . . . . Special Melee Weapon . | . . . . Unidentified Prototypes . | . . . . Parts Lost 6 | . . 1 5 Power 2 | . . 1 1 Propulsion 3 | . . . 3 Utility . | . . . . Weapon 1 | . . . 1 Highest Loss Streak 5 | . . 1 5 To Critical Strikes . | . . . . Average Backups 9 | 5 8 8 15 Power . | . 1 . . Propulsion 2 | 2 4 2 1 Utility 1 | . . 1 2 Weapon 5 | 1 2 5 11 Tool/Special . | . . . . Unused Backups 16 | 1 . 2 13 Power . | . . . . Propulsion 1 | 1 . . . Utility 2 | . . 1 1 Weapon 13 | . . 1 12 Tool/Special . | . . . . Average Slot Usage (%) 80 | . 99 80 72 Engine 20 | . 14 20 24 Wheel 25 | . 27 25 21 Device 5 | . 14 5 . Storage 11 | . 14 11 12 Protection 1 | . . 1 . Energy Gun 6 | . 27 5 . Energy Cannon 9 | . . 9 12 Peak Build Rating 45 | 7 7 44 45 Average Rating 22 | 5 6 22 44 On Entrance 14 | . 7 7 44 Avg Prop Armor Cover (%) 6 | . 6 . . Naked Turns . | . . . . Heaviest Build 218 | 11 11 218 218 Greatest Support 40 | 26 20 40 20 Greatest Overweight (x) 72 | . 1 10 72 Average Overweight (x) 3 | . . 2 10 Largest Inventory Capacity 35 | 8 8 35 35 Average Capacity 20 | 7 8 20 35 Most Carried 32 | 8 8 31 32 Average Carried 12 | 5 7 10 31 Final Capacity 35 | 8 8 35 35 Final Carried 31 | 8 8 31 31 Class Distribution -------------------- 51% | Mutant 46% | Hauler-Mutant Dominant Class ---------------- Mutant | -10/Materials Mutant | -10/Subcaves Hauler-Mutant | -7/Recycling Resources | -11 -10 -10 -7 ----------- Run | Yrd Mat Sub Rec Matter Collected 587 | 310 7 249 21 Remotely . | . . . . Salvage Created 832 | 203 50 439 140 Parts 58 | 21 7 23 7 Haulers Intercepted . | . . . . Recyclers Shooed 1 | 1 . . . Parts Field Recycled . | . . . . Retrieved Matter . | . . . . Parts Self-Destructed 12 | . . 12 . Prevented . | . . . . Parts Restored . | . . . . Kills | -11 -10 -10 -7 ------- Run | Yrd Mat Sub Rec Combat Hostiles Destroyed 16 | . 3 11 2 Guns 6 | . 3 3 . Cannons 7 | . . 5 2 Classes Destroyed 7 | 3 1 2 1 Worker 2 | 2 . . . Tunneler 5 | 5 . . . Recycler 1 | 1 . . . Swarmer 5 | . 3 2 . Cobbler 1 | . . 1 . Subdweller 9 | . . 9 . Scrapper 2 | . . . 2 Best Kill Streak 4 | 4 3 2 1 Combat Bots Only 3 | . 3 2 1 Max Kills in Single Turn 2 | 2 1 1 1 Gunslinging . | . . . . Exploded . | . . . . Melee . | . . . . Uniques/NPCs Destroyed . | . . . . Combat | -11 -10 -10 -7 -------- Run | Yrd Mat Sub Rec Hostile Shots Fired 93 | . 10 51 32 Missed 26 | . 1 21 4 Hits 67 | . 9 30 28 Projectile 67 | . 9 30 28 Critical Strikes 2 | . . . 2 Damage Taken 1066 | . 105 333 628 Core 254 | . 32 77 145 Absorbed by Shields . | . . . . Core Remaining (%) 100 | 100 . . . Volleys Fired 67 | 21 5 33 8 Largest 2 | 2 2 2 1 Hottest 120 | 80 80 100 120 Shots Fired 98 | 42 10 39 7 Gun 62 | 42 10 10 . Cannon 28 | . . 21 7 Launcher . | . . . . Special 8 | . . 8 . Kinetic . | . . . . Thermal 98 | 42 10 39 7 Explosive . | . . . . Electromagnetic . | . . . . Robot Hit Streak 10 | 4 3 10 1 Robot Miss Streak 2 | 2 1 1 2 Penetration Max . | . . . . Secondary Targets 2 | . 1 1 . Max Gunslinging Chain 1 | . 1 1 . Shots Hit Robots 58 | 29 5 21 3 Core Hits 22 | 9 3 8 2 Critical Kills 4 | . . 4 . Critical Parts Destroyed . | . . . . Critical Strikes 4 | . . 4 . Meltdown 4 | . . 4 . Melee Attacks . | . . . . Impact . | . . . . Slashing . | . . . . Piercing . | . . . . Sneak Attacks . | . . . . Combat Hostiles . | . . . . Follow-up Attacks . | . . . . Damage Inflicted 1330 | 333 55 739 203 Guns 460 | 333 55 72 . Cannons 870 | . . 667 203 Explosions . | . . . . Melee . | . . . . Ramming . | . . . . Kinetic . | . . . . Thermal 1330 | 333 55 739 203 Explosive . | . . . . Electromagnetic . | . . . . Impact . | . . . . Slashing . | . . . . Piercing . | . . . . Highest Corruption 3 | . 3 3 3 Average Corruption 3 | . 3 3 3 Corruption Purged . | . . . . Corruption Blocked . | . . . . Effects 46 | . . 38 8 Message Errors 10 | . . 8 2 Matter Fused 14 | . . 11 3 Heat Flow Errors 7 | . . 6 1 Energy Discharges 5 | . . 4 1 Parts Fused 2 | . . 2 . Data Loss (minor) 5 | . . 5 . Data Loss (major) 1 | . . . 1 Misfires 1 | . . 1 . Alerts 1 | . . 1 . Overload Shots 3 | . . . 3 Effects 1 | . . . 1 Energy Bleed 1 | . . . 1 Overflow Damage 52 | . . . 52 Projectiles 52 | . . . 52 Explosions . | . . . . Melee . | . . . . Knockbacks . | . . . . Impact . | . . . . Kinetic . | . . . . Secondary . | . . . . Self-Inflicted Damage 36 | . 36 . . Shots 1 | . 1 . . Rammed . | . . . . Targets Rammed . | . . . . Kicked . | . . . . Crushed . | . . . . Highest Temperature 388 | 126 90 174 388 Average Temperature 87 | 47 46 50 141 Received Heat Transfer 461 | . . 75 386 Effects 1 | . . . 1 Shutdowns 1 | . . . 1 Siege Activations . | . . . . Martial Activations . | . . . . Shielding Activations . | . . . . Robots Disrupted . | . . . . Combat Hostiles . | . . . . Robots Corrupted . | . . . . Combat Hostiles . | . . . . Parts Fried . | . . . . Impact Corruptions . | . . . . Robots Melted 4 | . . 4 . Combat Hostiles 3 | . . 3 . Parts Melted 11 | 3 . 7 1 Heat Transferred 1050 | 750 125 175 . Parts Sabotaged . | . . . . Parts Stolen . | . . . . Parts Stripped . | . . . . Power Chain Reactions . | . . . . Alert | -11 -10 -10 -7 ------- Run | Yrd Mat Sub Rec Maximum Alert Level . | . . . . Low Security (%) 100 | 100 100 . 100 Level 1 . | . . . . Level 2 . | . . . . Level 3 . | . . . . Level 4 . | . . . . Level 5 . | . . . . High Security . | . . . . Max Security . | . . . . Peak Influence 77 | 15 77 . 2 Initial . | . . . . Average 9 | 2 32 . . Influence Increases 230 | 40 87 100 3 Destroy 0b10 Robot/C 100 | . 60 40 . Destroy 0b10 Robot/NC 40 | 40 . . . Destroy Leader 10 | . 10 . . Disable Machine 15 | . 15 . . Destroy Structure 5 | . 2 . 3 Lose Combat Pursuer 60 | . . 60 . Influence Decreases 230 | 40 70 117 3 Entered New Map 9 | . . 9 . Time Decay 211 | 40 70 98 3 Lost Part 10 | . . 10 . Squads Dispatched . | . . . . Investigation . | . . . . Extermination . | . . . . Reinforcement . | . . . . Assault . | . . . . Garrison . | . . . . Intercept . | . . . . Searches Triggered . | . . . . Construction Impeded . | . . . . Haulers Reinforced . | . . . . Active Scanning Responses . | . . . . Cargo Convoy Interrupts . | . . . . Stealth | -11 -10 -10 -7 --------- Run | Yrd Mat Sub Rec Distress Signals . | . . . . Communications Jammed . | . . . . Distress Signals . | . . . . Times Spotted 27 | . 4 20 3 Peak Tracking Total 8 | . 3 8 3 Tactical Retreats 2 | . . 2 . Traps | -11 -10 -10 -7 ------- Run | Yrd Mat Sub Rec Traps Triggered 3 | . 2 1 . Indirectly . | . . . . Trap Hack Attempts . | . . . . Triggered . | . . . . Disarmed . | . . . . Reprogrammed . | . . . . Reused . | . . . . Traps Extracted . | . . . . Installed . | . . . . Triggered . | . . . . Machines | -11 -10 -10 -7 ---------- Run | Yrd Mat Sub Rec Machines Disabled 2 | . 1 1 . Max in Single Turn 1 | . 1 1 . Machines Repaired . | . . . . Machines Dismantled . | . . . . Machines Sabotaged . | . . . . Overloaded Fab Kills . | . . . . Hacking | -11 -10 -10 -7 --------- Run | Yrd Mat Sub Rec Machines Accessed 4 | . . 3 1 Terminals 1 | . . . 1 Fabricators . | . . . . Repair Stations . | . . . . Recycling Units . | . . . . Scanalyzers . | . . . . Garrison Access . | . . . . Total Hacks 5 | . . 4 1 Successful 4 | . . 4 . Failed 1 | . . . 1 Catastrophic . | . . . . Database Lockouts . | . . . . Manual 1 | . . . 1 Terminals 1 | . . . 1 Fabricators . | . . . . Repair Stations . | . . . . Recycling Units . | . . . . Scanalyzers . | . . . . Garrison Access . | . . . . Terminal Hacks 4 | . . 4 . Record 1 | . . 1 . Open Door 1 | . . 1 . Proto ID Catalog 1 | . . 1 . Release Object 1 | . . 1 . Fabricator Hacks . | . . . . Repair Station Hacks . | . . . . Recycling Unit Hacks . | . . . . Scanalyzer . | . . . . Garrison Access Hacks . | . . . . Unauthorized Hacks . | . . . . Terminals . | . . . . Fabricators . | . . . . Repair Stations . | . . . . Recycling Units . | . . . . Scanalyzers . | . . . . Garrison Access . | . . . . Data Cores Recovered . | . . . . Used . | . . . . Hacking Detections 1 | . . . 1 Full Trace Events . | . . . . Feedback Events . | . . . . Feedback Blocked . | . . . . Robot Schematics Acquired . | . . . . Robots Built . | . . . . Authchips . | . . . . Time . | . . . . Total Robot Build Rating . | . . . . Part Schematics Acquired . | . . . . Parts Built . | . . . . Authchips . | . . . . Time . | . . . . Total Part Build Rating . | . . . . Part Studies Acquired . | . . . . Parts Repaired . | . . . . Time . | . . . . Parts Recycled . | . . . . Recycled Matter . | . . . . Retrieved Matter . | . . . . Retrieved Components . | . . . . Parts Scanalyzed . | . . . . Part Schematics Acquired . | . . . . Parts Damaged . | . . . . Bothacking | -11 -10 -10 -7 ------------ Run | Yrd Mat Sub Rec Used RIF Installer . | . . . . Robots Hacked . | . . . . Non-combat . | . . . . Combat . | . . . . Robot Hacks Applied . | . . . . Relay Couplers Released . | . . . . Fabnet Peak Effective % . | . . . . Robots Rewired . | . . . . Allies Hacked . | . . . . Hacks Repelled . | . . . . Allies | -11 -10 -10 -7 -------- Run | Yrd Mat Sub Rec Total Allies . | . . . . Largest Group . | . . . . Highest-Rated Group . | . . . . Highest-Rated Ally . | . . . . Total Orders . | . . . . Ally Attacks . | . . . . Total Damage . | . . . . Kills . | . . . . Allies Corrupted . | . . . . Allies Melted . | . . . . Intel | -11 -10 -10 -7 ------- Run | Yrd Mat Sub Rec Active Infowar (turns) 1246 | 49 181 1016 . Seismic 1246 | 49 181 1016 . Robot Analysis Total . | . . . . Derelict Logs Recovered 1 | . . 1 . Drone Launches . | . . . . Drone Recoveries . | . . . . Exploration | -11 -10 -10 -7 ------------- Run | Yrd Mat Sub Rec Turns Passed 3113 | 190 181 2423 319 Spaces Moved 2173 | 122 177 1765 109 Core 6 | 5 . . 1 Treads 4 | . . 4 . Legs . | . . . . Wheels 2163 | 117 177 1761 108 Hover . | . . . . Flight . | . . . . Fastest Speed 50 | 50 80 80 230 Average Speed 126 | 83 86 124 265 Slowest Speed 3650 | 90 95 230 3650 Overloaded Moves . | . . . . Propulsion Burnouts . | . . . . Robots Hopped . | . . . . Potential Cave-ins . | . . . . Cave-ins Triggered . | . . . . Exploration Rate (%) 26 | 5 28 52 20 Regions Visited 3 Branch Regions 2 Pre-discovered Areas 1 | . . 1 . Known Exits Taken . | . . . . Unknown Exits Taken 3 | 1 1 1 . Scrap Searched 9 | . . 9 . Spaces Dug 3 | . . 3 . Terrain Destroyed 10 | . . 7 3 Melee . | . . . . Projectile 10 | . . 7 3 AOE . | . . . . Terrain Rammed . | . . . . Walls Destroyed . | . . . . Machines Disabled . | . . . . Actions | -11 -10 -10 -7 --------- Run | Yrd Mat Sub Rec Total 2435 | 168 190 1936 141 Wait 115 | . . 93 22 Move 2170 | 121 176 1764 109 Hop . | . . . . Pick Up 29 | 11 1 16 1 Fast Attach 14 | 6 4 4 . Attach 3 | 1 . 1 1 Detach 3 | . . 3 . Swap 14 | 4 3 7 . Drop 18 | 4 1 13 . Fire 67 | 21 5 33 8 Melee . | . . . . Ram . | . . . . Kick . | . . . . Crush . | . . . . Escape Stasis . | . . . . Rewire . | . . . . Trap . | . . . . Miscellaneous 2 | . . 2 . Route ------- -11/Scrapyard -10/Materials (discovered 2 exits: [*Min] / *Sub) -10/Subcaves (discovered 3 exits: [*Mat x2] / *Rec) -7/Recycling History --------- Turn | Location | Event 13 | -11/Scrapyard | Discovered new exit (range 15) 191 | -11/Scrapyard | Entered Materials 317 | -10/Materials | Build established: Mutant 335 | -10/Materials | Discovered new exit (range 15) 339 | -10/Materials | Discovered new exit (range 7) 372 | -10/Materials | Entered Subcaves 376 | -10/Subcaves | Ambushed by Subdwellers from Twisted Machinery 497 | -10/Subcaves | Discovered new exit (range 8) 651 | -10/Subcaves | A swath of the cavern ceiling suddenly collapsed 713 | -10/Subcaves | Discovered new exit (range 12) 753 | -10/Subcaves | Discovered new exit (range 13) 795 | -10/Subcaves | Curiously followed by a Cobbler waking with a query about "LVR3C" 850 | -10/Subcaves | Visited 4L-MR0's lab 881 | -10/Subcaves | Found Powered Cannon 882 | -10/Subcaves | Attached Powered Cannon, gained temporary slot: Power 1222 | -10/Subcaves | Shifting Twisted Machinery released Mak. Power Source 1249 | -10/Subcaves | Shifting Twisted Machinery released Battle Rifle 1656 | -10/Subcaves | Disturbed a concealed Subdweller 1958 | -10/Subcaves | Build established: Hauler-Mutant 2591 | -10/Subcaves | Found SUBCON Basin 2795 | -10/Subcaves | Entered Recycling 3001 | -7/Recycling | Scanned before Scraplab entrance 3020 | -7/Recycling | Angered Scraplab inhabitants 3029 | -7/Recycling | Core integrity fell below 50% 3107 | -7/Recycling | Core integrity fell below 20% 3114 | -7/Recycling | Destroyed by M7-JM8(j) with Overtuned Pulse Rifle Last Messages --------------- 03021_ Destroyed Lgt. Deuterium Engine. 03023_ Overload: Energy bleed (-72). 03029_ QM-BDF(j) destroyed. 03030_ Power failure, Mak. Power Source shutdown. 03037_ System corrupted: Energy discharge (-65). 03046_ Acquired 6 matter. 03058_ Scrap Suit violently self-destructs. 03067_ Critical hit (Burn: +50). 03068_ A6-VMJ(j): "Defend the Scraplab!" 03069_ Wheel destroyed. 03070_ SGVWUEPGJ/RS7,|MUSR9PSX7CRWI#XCBDD 03074_ Mak. Salvage Targeting Computer melted. 03074_ A6-VMJ(j) destroyed. 03084_ Scrap Suit violently self-destructs. 03084_ Wheel destroyed. 03097_ Mak. Power Source destroyed. 03104_ M7-JM8(j) heat damages Ovr. Pulse Rifle. 03109_ Lgt. Treads destroyed. 03111_ Powered Cannon destroyed. 03114_ Critical hit (Burn: +50). Map ----- +----------------------------------------------------+ | | | | | | | | | | | | | | | | | | | | | | | | | | | | | | | | | | | | | | | | | ??????????????????????#########??????????????????? | | ??????????????????????#"""""""#??????????????????? | | ????????????????###?### " X " ## #???????????????? | | ???????????????##;###;#!%= #???????????????? | | ???????????????#![ /c j #???????????????? | | ???????????????#% ##### @ "#???????????????? | | ???????????????##=#???# ""#???????????????? | | ????????????????# #???#"& "& Xc""????????????????? | | ????????????????# #???#"""""""" #???????????????? | | ?????????????#####################???????????????? | | ?????????????# #???????????????????????????? | | ?????????????# #???????????????????????????? | | ?????????????# #???????????????????????????? | | ?????????????# #???????????????????????????? | | ?????????????####+####???????????????????????????? | | ????????????????# ###################????????????? | | ????????????????# #????????????? | | ????????????????# #????????????? | | ????????????????# #????????????? | | ????????????????##################+######????????? | | ???????????#############????????# #????????? | | ###????????# ] = %#????????# #????????? | | #????????# ########## """ #????????? | | #????????# % / + + """"" #????????? | | #????????# / ###### ### """"" #????????? | | #????????# % #????# #?# """"" #????????? | | #????????# ! #????# #?# """ ?#????????? | | #????????# = ! #????# #?# ??????????? | | ###############+#######???# #?# """ ??????????? | | # """"" ?????????? | +----------------------------------------------------+ Best States ------------- Heat Dissipation 25 Energy Generation 20 Energy Capacity 320 Matter Stores 300 Matter Capacity 300 Sight Range 16 Terrain Scan Density 10 Armor Coverage 800 Evasion (%) 44 Recoil Reduction 2 Item Schematics ----------------- None Robot Schematics ------------------ None Fabricated ------------ Nothing Repaired ---------- Nothing Studied --------- None Alien Tech Used ----------------- None Achievements -------------- Art Critic Survival Of The Most Covered Challenges ------------ None Game ------ Seed PointyEnergyTerrabomb Manual? 0 Play Time 00:19:32 Cumulative 105.1 hours Start 2025.12.07 @ 09:04:02 End 2025.12.07 @ 09:22:19 Sessions 1 Manual Loads 0 Difficulty Rogue Special Mode None Game No. 110 Rogue 110 Adventurer 0 Explorer 0 Win Type - Total 0 Types 0/0/0/0/0/0/0/0/0/0 Lore% 62 Gallery% 47 Achievement% 39 Wizard Run 0 Options --------- Layout 0 ASCII 0 Keyboard 1 Movement Vi Keybinds 0 Fullscreen 2 Font 18/SmallcapsGlow Map View 76x50 Zoom Use 0% Tactical HUD 1 Map Filters NONE Filters NONE Steam 1 RUN: 82da9d15-211c-440c-b4a0-5916ce69ed64